[Event "Titled Tuesday Blitz January 10 Early 2023"]
[White "Chigaev, Maksim"]
[Black "Mihajlov, Sebastian"]
[WhiteFideId "4108116"]
[BlackFideId "1512110"]
[WhiteElo "2628"]
[BlackElo "2373"]
[Result "1-0"]
[Round "09"]
[TimeControl "180+2"]
[Date "2023.01.10"]
[WhiteClock "0:00:10"]
[BlackClock "0:00:02"]

1. e4 {[%clk 0:03:00]}  e6 {[%clk 0:03:00]} 2. d4 {[%clk 0:02:58]}  d5 {[%clk 0:03:00]} 3. Nd2 {[%clk 0:02:58]}  a6 {[%clk 0:03:00]} 4. Ngf3 {[%clk 0:02:56]}  c5 {[%clk 0:03:00]} 5. exd5 {[%clk 0:02:42]}  exd5 {[%clk 0:03:01]} 6. Be2 {[%clk 0:02:42]}  Nf6 {[%clk 0:03:01]} 7. O-O {[%clk 0:02:43]}  Be7 {[%clk 0:03:01]} 8. dxc5 {[%clk 0:02:40]}  Bxc5 {[%clk 0:03:02]} 9. Nb3 {[%clk 0:02:40]}  Bb6 {[%clk 0:03:02]} 10. Nbd4 {[%clk 0:02:38]}  O-O {[%clk 0:03:02]} 11. c3 {[%clk 0:02:36]}  h6 {[%clk 0:03:00]} 12. Be3 {[%clk 0:02:34]}  Re8 {[%clk 0:03:00]} 13. Re1 {[%clk 0:02:30]}  Bc7 {[%clk 0:02:58]} 14. Bd3 {[%clk 0:02:26]}  Ne4 {[%clk 0:02:56]} 15. Ne2 {[%clk 0:02:22]}  Nc6 {[%clk 0:02:53]} 16. Ng3 {[%clk 0:02:22]}  Bg4 {[%clk 0:02:28]} 17. Bf1 {[%clk 0:01:21]}  Ne5 {[%clk 0:01:30]} 18. Be2 {[%clk 0:01:19]}  Nc4 {[%clk 0:01:29]} 19. Bxc4 {[%clk 0:01:16]}  dxc4 {[%clk 0:01:28]} 20. Qxd8 {[%clk 0:01:04]}  Raxd8 {[%clk 0:01:29]} 21. Nxe4 {[%clk 0:00:56]}  Rxe4 {[%clk 0:01:28]} 22. Bd4 {[%clk 0:00:57]}  Ree8 {[%clk 0:01:18]} 23. h3 {[%clk 0:00:49]}  Be6 {[%clk 0:01:13]} 24. Be5 {[%clk 0:00:43]}  Bb6 {[%clk 0:01:12]} 25. Bd4 {[%clk 0:00:33]}  Bc7 {[%clk 0:01:11]} 26. Rad1 {[%clk 0:00:29]}  f6 {[%clk 0:01:07]} 27. a3 {[%clk 0:00:28]}  Kf7 {[%clk 0:01:04]} 28. Bc5 {[%clk 0:00:26]}  b6 {[%clk 0:00:59]} 29. Be3 {[%clk 0:00:23]}  Bd5 {[%clk 0:00:49]} 30. Nd4 {[%clk 0:00:23]}  h5 {[%clk 0:00:46]} 31. h4 {[%clk 0:00:22]}  b5 {[%clk 0:00:42]} 32. g3 {[%clk 0:00:19]}  Bb7 {[%clk 0:00:33]} 33. Bf4 {[%clk 0:00:17]}  Bxf4 {[%clk 0:00:22]} 34. gxf4 {[%clk 0:00:17]}  Be4 {[%clk 0:00:12]} 35. Kh2 {[%clk 0:00:17]}  Rd5 {[%clk 0:00:08]} 36. Re3 {[%clk 0:00:16]}  Bd3 {[%clk 0:00:08]} 37. Rde1 {[%clk 0:00:15]}  Rxe3 {[%clk 0:00:08]} 38. Rxe3 {[%clk 0:00:14]}  g5 {[%clk 0:00:08]} 39. Kg3 {[%clk 0:00:10]}  Kg6 {[%clk 0:00:02]} 40. fxg5 {[%clk 0:00:10]}  fxg5 {[%clk 0:00:02]} 41. Re6+ {[%clk 0:00:10]}  Kf7 {[%clk 0:00:03]} 42. Rxa6 {[%clk 0:00:11]}  gxh4+ {[%clk 0:00:04]} 43. Kxh4 {[%clk 0:00:11]}  Re5 {[%clk 0:00:04]} 44. Rb6 {[%clk 0:00:10]}  Re1 {[%clk 0:00:03]} 45. Kxh5 {[%clk 0:00:09]}  Rh1+ {[%clk 0:00:03]} 46. Kg4 {[%clk 0:00:09]}  Rb1 {[%clk 0:00:02]} 47. Rxb5 {[%clk 0:00:08]}  Kf6 {[%clk 0:00:03]} 48. Kf4 {[%clk 0:00:09]}  Ke7 {[%clk 0:00:03]} 49. f3 {[%clk 0:00:10]}  Kd6 {[%clk 0:00:03]} 50. a4 {[%clk 0:00:10]}  Bf1 {[%clk 0:00:03]} 51. a5 {[%clk 0:00:11]}  Ra1 {[%clk 0:00:03]} 52. Rb6+ {[%clk 0:00:11]}  Kc5 {[%clk 0:00:03]} 53. Rc6+ {[%clk 0:00:10]}  Kd5 {[%clk 0:00:04]} 54. a6 {[%clk 0:00:11]}  Ra2 {[%clk 0:00:04]} 55. Rb6 {[%clk 0:00:10]}  Kc5 {[%clk 0:00:04]} 56. Rb5+ {[%clk 0:00:09]}  Kd6 {[%clk 0:00:05]} 57. Rh5 {[%clk 0:00:10]}  Kc7 {[%clk 0:00:04]} 58. a7 {[%clk 0:00:09]}  Kb7 {[%clk 0:00:03]} 59. Rh7+ {[%clk 0:00:10]}  Ka8 {[%clk 0:00:03]} 60. Nb5 {[%clk 0:00:10]}  Ra5 {[%clk 0:00:02]} 61. Rh8+ {[%clk 0:00:10]} 1-0


[Site "https://www.chess.com"]

[Event "Titled Tuesday Blitz January 10 Early 2023"]
[White "Vidit, Santosh Gujrathi"]
[Black "Rakhmatullaev, Almas"]
[WhiteFideId "5029465"]
[BlackFideId "14205793"]
[WhiteElo "2731"]
[BlackElo "2275"]
[Result "1/2-1/2"]
[Round "09"]
[TimeControl "180+2"]
[Date "2023.01.10"]
[WhiteClock "0:00:19"]
[BlackClock "0:00:07"]

1. c4 {[%clk 0:02:48]}  Nf6 {[%clk 0:02:58]} 2. Nc3 {[%clk 0:02:48]}  e6 {[%clk 0:02:53]} 3. e4 {[%clk 0:02:47]}  d6 {[%clk 0:02:35]} 4. d4 {[%clk 0:02:46]}  g6 {[%clk 0:02:36]} 5. Nf3 {[%clk 0:02:43]}  Bg7 {[%clk 0:02:35]} 6. Be2 {[%clk 0:02:44]}  O-O {[%clk 0:02:34]} 7. O-O {[%clk 0:02:45]}  a6 {[%clk 0:02:33]} 8. Be3 {[%clk 0:02:43]}  Nc6 {[%clk 0:02:32]} 9. Rc1 {[%clk 0:02:35]}  Re8 {[%clk 0:02:29]} 10. d5 {[%clk 0:02:20]}  exd5 {[%clk 0:02:27]} 11. cxd5 {[%clk 0:02:18]}  Nb8 {[%clk 0:02:23]} 12. Qc2 {[%clk 0:02:09]}  Re7 {[%clk 0:02:07]} 13. Rfd1 {[%clk 0:02:07]}  Qe8 {[%clk 0:02:02]} 14. Nd2 {[%clk 0:01:33]}  b5 {[%clk 0:01:40]} 15. Bf3 {[%clk 0:01:20]}  Nbd7 {[%clk 0:01:14]} 16. h3 {[%clk 0:01:01]}  Bb7 {[%clk 0:01:05]} 17. g3 {[%clk 0:00:50]}  Rc8 {[%clk 0:00:50]} 18. Bf4 {[%clk 0:00:49]}  h6 {[%clk 0:00:42]} 19. h4 {[%clk 0:00:47]}  Ne5 {[%clk 0:00:38]} 20. Bxe5 {[%clk 0:00:46]}  Rxe5 {[%clk 0:00:33]} 21. Nb3 {[%clk 0:00:46]}  b4 {[%clk 0:00:29]} 22. Ne2 {[%clk 0:00:44]}  Nxe4 {[%clk 0:00:29]} 23. Nf4 {[%clk 0:00:42]}  Nf6 {[%clk 0:00:21]} 24. Na5 {[%clk 0:00:40]}  Ba8 {[%clk 0:00:20]} 25. Nc6 {[%clk 0:00:40]}  Bxc6 {[%clk 0:00:20]} 26. Qxc6 {[%clk 0:00:40]}  g5 {[%clk 0:00:16]} 27. hxg5 {[%clk 0:00:38]}  hxg5 {[%clk 0:00:17]} 28. Nd3 {[%clk 0:00:38]}  Rf5 {[%clk 0:00:14]} 29. Bg2 {[%clk 0:00:28]}  Qe2 {[%clk 0:00:13]} 30. Qxa6 {[%clk 0:00:25]}  Rf8 {[%clk 0:00:10]} 31. Re1 {[%clk 0:00:23]}  Qh5 {[%clk 0:00:11]} 32. Rxc7 {[%clk 0:00:15]}  Ng4 {[%clk 0:00:10]} 33. Rc8 {[%clk 0:00:16]}  Qh2+ {[%clk 0:00:09]} 34. Kf1 {[%clk 0:00:16]}  Qxg3 {[%clk 0:00:08]} 35. Rxf8+ {[%clk 0:00:16]}  Bxf8 {[%clk 0:00:09]} 36. Re2 {[%clk 0:00:17]}  Nh2+ {[%clk 0:00:06]} 37. Kg1 {[%clk 0:00:17]}  Nf3+ {[%clk 0:00:06]} 38. Kf1 {[%clk 0:00:18]}  Nh2+ {[%clk 0:00:06]} 39. Kg1 {[%clk 0:00:18]}  Nf3+ {[%clk 0:00:07]} 40. Kf1 {[%clk 0:00:19]}  Nh2+ {[%clk 0:00:07]} 1/2-1/2


[Site "https://www.chess.com"]

[Event "Titled Tuesday Blitz January 10 Early 2023"]
[White "Galchenko, Matvey"]
[Black "Paravyan, David"]
[WhiteFideId "24175480"]
[BlackFideId "4194985"]
[WhiteElo "2438"]
[BlackElo "2601"]
[Result "1-0"]
[Round "09"]
[TimeControl "180+2"]
[Date "2023.01.10"]
[WhiteClock "0:00:06"]
[BlackClock "0:00:04"]

1. e4 {[%clk 0:03:00]}  e5 {[%clk 0:02:58]} 2. Nf3 {[%clk 0:03:00]}  Nf6 {[%clk 0:02:58]} 3. d4 {[%clk 0:02:50]}  Nxe4 {[%clk 0:02:52]} 4. Bd3 {[%clk 0:02:50]}  d5 {[%clk 0:02:51]} 5. Nxe5 {[%clk 0:02:50]}  Nd7 {[%clk 0:02:51]} 6. Nxd7 {[%clk 0:02:46]}  Bxd7 {[%clk 0:02:52]} 7. Nc3 {[%clk 0:02:43]}  Nxc3 {[%clk 0:02:48]} 8. bxc3 {[%clk 0:02:44]}  Bd6 {[%clk 0:02:48]} 9. Qh5 {[%clk 0:02:35]}  g6 {[%clk 0:02:07]} 10. Qxd5 {[%clk 0:02:09]}  Bc6 {[%clk 0:02:04]} 11. Bb5 {[%clk 0:02:08]}  O-O {[%clk 0:02:00]} 12. Bxc6 {[%clk 0:02:07]}  bxc6 {[%clk 0:02:00]} 13. Qxc6 {[%clk 0:01:50]}  Qh4 {[%clk 0:01:47]} 14. Be3 {[%clk 0:01:35]}  Rae8 {[%clk 0:01:36]} 15. Kd2 {[%clk 0:01:30]}  f5 {[%clk 0:01:18]} 16. g3 {[%clk 0:01:18]}  Qh5 {[%clk 0:01:09]} 17. Rae1 {[%clk 0:00:59]}  Re4 {[%clk 0:00:41]} 18. Qc4+ {[%clk 0:00:32]}  Kg7 {[%clk 0:00:41]} 19. Qe2 {[%clk 0:00:32]}  f4 {[%clk 0:00:41]} 20. Qxh5 {[%clk 0:00:18]}  fxe3+ {[%clk 0:00:41]} 21. Rxe3 {[%clk 0:00:18]}  Rxe3 {[%clk 0:00:29]} 22. Qb5 {[%clk 0:00:11]}  Ref3 {[%clk 0:00:25]} 23. Re1 {[%clk 0:00:11]}  Rxf2+ {[%clk 0:00:22]} 24. Re2 {[%clk 0:00:11]}  R2f5 {[%clk 0:00:23]} 25. Qd7+ {[%clk 0:00:11]}  R8f7 {[%clk 0:00:22]} 26. Qc6 {[%clk 0:00:12]}  a5 {[%clk 0:00:22]} 27. a4 {[%clk 0:00:12]}  h5 {[%clk 0:00:22]} 28. Kd3 {[%clk 0:00:09]}  Rf3+ {[%clk 0:00:22]} 29. Kc4 {[%clk 0:00:09]}  Ba3 {[%clk 0:00:15]} 30. Re6 {[%clk 0:00:06]}  Bb2 {[%clk 0:00:13]} 31. Rxg6+ {[%clk 0:00:06]}  Kf8 {[%clk 0:00:14]} 32. Qa8+ {[%clk 0:00:05]}  Ke7 {[%clk 0:00:13]} 33. Qe4+ {[%clk 0:00:03]}  Kf8 {[%clk 0:00:13]} 34. Re6 {[%clk 0:00:03]}  Rxc3+ {[%clk 0:00:13]} 35. Kb5 {[%clk 0:00:04]}  Rcf3 {[%clk 0:00:08]} 36. Re8+ {[%clk 0:00:04]}  Kg7 {[%clk 0:00:09]} 37. Qe5+ {[%clk 0:00:05]}  R7f6 {[%clk 0:00:06]} 38. Re6 {[%clk 0:00:06]}  Bxd4 {[%clk 0:00:03]} 39. Qxd4 {[%clk 0:00:05]}  Rf5+ {[%clk 0:00:03]} 40. Ka6 {[%clk 0:00:05]}  c5 {[%clk 0:00:02]} 41. Qd7+ {[%clk 0:00:05]}  Kg6 {[%clk 0:00:03]} 42. Rxf6+ {[%clk 0:00:05]}  Rxf6+ {[%clk 0:00:04]} 43. Kxa5 {[%clk 0:00:06]}  Rf7 {[%clk 0:00:04]} 1-0


[Site "https://www.chess.com"]

[Event "Titled Tuesday Blitz January 10 Early 2023"]
[White "Keymer, Vincent"]
[Black "Urazayev, Arystanbek"]
[WhiteFideId "12940690"]
[BlackFideId "13709810"]
[WhiteElo "2700"]
[BlackElo "2460"]
[Result "1-0"]
[Round "09"]
[TimeControl "180+2"]
[Date "2023.01.10"]
[WhiteClock "0:00:06"]
[BlackClock "0:00:06"]

1. a3 {[%clk 0:02:56]}  d5 {[%clk 0:02:59]} 2. Nf3 {[%clk 0:02:55]}  Nf6 {[%clk 0:03:00]} 3. e3 {[%clk 0:02:55]}  e6 {[%clk 0:03:00]} 4. c4 {[%clk 0:02:55]}  Be7 {[%clk 0:03:01]} 5. Nc3 {[%clk 0:02:53]}  O-O {[%clk 0:03:01]} 6. b4 {[%clk 0:02:52]}  b6 {[%clk 0:03:01]} 7. Bb2 {[%clk 0:02:44]}  Bb7 {[%clk 0:03:02]} 8. cxd5 {[%clk 0:02:44]}  e5 {[%clk 0:02:59]} 9. e4 {[%clk 0:02:31]}  c6 {[%clk 0:02:59]} 10. dxc6 {[%clk 0:02:23]}  Nxc6 {[%clk 0:02:59]} 11. Be2 {[%clk 0:02:23]}  a5 {[%clk 0:02:49]} 12. b5 {[%clk 0:02:23]}  Nd4 {[%clk 0:02:49]} 13. d3 {[%clk 0:02:23]}  Nxf3+ {[%clk 0:02:33]} 14. Bxf3 {[%clk 0:02:23]}  Bc5 {[%clk 0:02:34]} 15. Ne2 {[%clk 0:02:20]}  Qe7 {[%clk 0:02:34]} 16. O-O {[%clk 0:02:09]}  Rfd8 {[%clk 0:02:34]} 17. Qb3 {[%clk 0:02:08]}  Bc8 {[%clk 0:02:30]} 18. Rfd1 {[%clk 0:01:55]}  Bg4 {[%clk 0:02:30]} 19. d4 {[%clk 0:01:33]}  Bxf3 {[%clk 0:02:27]} 20. gxf3 {[%clk 0:00:59]}  Bd6 {[%clk 0:02:26]} 21. Qe3 {[%clk 0:00:58]}  Nh5 {[%clk 0:02:11]} 22. dxe5 {[%clk 0:00:58]}  Bxe5 {[%clk 0:02:12]} 23. Bxe5 {[%clk 0:00:57]}  Qxe5 {[%clk 0:02:13]} 24. Qxb6 {[%clk 0:00:58]}  Rdb8 {[%clk 0:01:58]} 25. Qc6 {[%clk 0:00:50]}  Qb2 {[%clk 0:01:24]} 26. Ng3 {[%clk 0:00:32]}  Nf4 {[%clk 0:01:24]} 27. Rab1 {[%clk 0:00:28]}  Qxa3 {[%clk 0:01:22]} 28. e5 {[%clk 0:00:26]}  h6 {[%clk 0:00:58]} 29. b6 {[%clk 0:00:25]}  Rf8 {[%clk 0:00:29]} 30. Qe4 {[%clk 0:00:20]}  Ne6 {[%clk 0:00:28]} 31. f4 {[%clk 0:00:19]}  Rab8 {[%clk 0:00:27]} 32. b7 {[%clk 0:00:19]}  Rfe8 {[%clk 0:00:17]} 33. h4 {[%clk 0:00:19]}  Nc5 {[%clk 0:00:15]} 34. Qc6 {[%clk 0:00:19]}  Ne6 {[%clk 0:00:16]} 35. f5 {[%clk 0:00:11]}  Nf4 {[%clk 0:00:14]} 36. Qe4 {[%clk 0:00:11]}  g5 {[%clk 0:00:11]} 37. hxg5 {[%clk 0:00:08]}  hxg5 {[%clk 0:00:12]} 38. Rdc1 {[%clk 0:00:05]}  Qa2 {[%clk 0:00:12]} 39. f6 {[%clk 0:00:04]}  Nh3+ {[%clk 0:00:11]} 40. Kg2 {[%clk 0:00:04]}  Nxf2 {[%clk 0:00:11]} 41. Qc2 {[%clk 0:00:05]}  Qxc2 {[%clk 0:00:10]} 42. Rxc2 {[%clk 0:00:06]}  Ng4 {[%clk 0:00:11]} 43. Re2 {[%clk 0:00:06]}  Rxe5 {[%clk 0:00:11]} 44. Rxe5 {[%clk 0:00:05]}  Nxe5 {[%clk 0:00:12]} 45. Nf5 {[%clk 0:00:05]}  Kf8 {[%clk 0:00:10]} 46. Nd4 {[%clk 0:00:04]}  a4 {[%clk 0:00:10]} 47. Rb5 {[%clk 0:00:04]}  a3 {[%clk 0:00:09]} 48. Rxe5 {[%clk 0:00:04]}  Rxb7 {[%clk 0:00:09]} 49. Ra5 {[%clk 0:00:04]}  Kg8 {[%clk 0:00:08]} 50. Rxa3 {[%clk 0:00:04]}  Kh7 {[%clk 0:00:08]} 51. Nf3 {[%clk 0:00:03]}  Kg6 {[%clk 0:00:08]} 52. Ra6 {[%clk 0:00:03]}  Kf5 {[%clk 0:00:09]} 53. Kg3 {[%clk 0:00:03]}  Rb3 {[%clk 0:00:08]} 54. Kg2 {[%clk 0:00:02]}  Kf4 {[%clk 0:00:08]} 55. Nd4 {[%clk 0:00:03]}  Rb2+ {[%clk 0:00:08]} 56. Kf1 {[%clk 0:00:03]}  g4 {[%clk 0:00:08]} 57. Ne2+ {[%clk 0:00:03]}  Ke5 {[%clk 0:00:08]} 58. Ng3 {[%clk 0:00:03]}  Kf4 {[%clk 0:00:07]} 59. Nh5+ {[%clk 0:00:03]}  Kg5 {[%clk 0:00:08]} 60. Ng3 {[%clk 0:00:03]}  Rb3 {[%clk 0:00:08]} 61. Kf2 {[%clk 0:00:03]}  Rf3+ {[%clk 0:00:08]} 62. Kg2 {[%clk 0:00:04]}  Rb3 {[%clk 0:00:09]} 63. Ne4+ {[%clk 0:00:03]}  Kf4 {[%clk 0:00:09]} 64. Nf2 {[%clk 0:00:03]}  Rb2 {[%clk 0:00:09]} 65. Kg1 {[%clk 0:00:03]}  Kf3 {[%clk 0:00:08]} 66. Ra3+ {[%clk 0:00:03]}  Ke2 {[%clk 0:00:08]} 67. Nxg4 {[%clk 0:00:04]}  Rb6 {[%clk 0:00:08]} 68. Kg2 {[%clk 0:00:03]}  Rb5 {[%clk 0:00:07]} 69. Kg3 {[%clk 0:00:03]}  Rf5 {[%clk 0:00:07]} 70. Re3+ {[%clk 0:00:03]}  Kd2 {[%clk 0:00:07]} 71. Re7 {[%clk 0:00:04]}  Rf1 {[%clk 0:00:06]} 72. Rxf7 {[%clk 0:00:04]}  Kd3 {[%clk 0:00:06]} 73. Re7 {[%clk 0:00:05]}  Kd4 {[%clk 0:00:06]} 74. Kh4 {[%clk 0:00:05]}  Kd5 {[%clk 0:00:07]} 75. Kg5 {[%clk 0:00:05]}  Kd6 {[%clk 0:00:07]} 76. Re3 {[%clk 0:00:05]}  Kd7 {[%clk 0:00:07]} 77. Kg6 {[%clk 0:00:06]}  Rg1 {[%clk 0:00:06]} 78. Re4 {[%clk 0:00:06]}  Kd6 {[%clk 0:00:06]} 79. f7 {[%clk 0:00:07]}  Kd5 {[%clk 0:00:06]} 80. Ra4 {[%clk 0:00:06]} 1-0


[Site "https://www.chess.com"]

[Event "Titled Tuesday Blitz January 10 Early 2023"]
[White "Tomashevsky, Evgeny"]
[Black "Neiksans, Arturs"]
[WhiteFideId "4147235"]
[BlackFideId "11601388"]
[WhiteElo "2694"]
[BlackElo "2615"]
[Result "1-0"]
[Round "09"]
[TimeControl "180+2"]
[Date "2023.01.10"]
[WhiteClock "0:01:00"]
[BlackClock "0:00:23"]

1. Nf3 {[%clk 0:03:00]}  f5 {[%clk 0:02:48]} 2. g3 {[%clk 0:02:59]}  Nf6 {[%clk 0:02:36]} 3. Bg2 {[%clk 0:02:58]}  d6 {[%clk 0:02:29]} 4. d4 {[%clk 0:02:55]}  g6 {[%clk 0:02:29]} 5. O-O {[%clk 0:02:55]}  Bg7 {[%clk 0:02:28]} 6. c4 {[%clk 0:02:55]}  O-O {[%clk 0:02:28]} 7. Nc3 {[%clk 0:02:56]}  c6 {[%clk 0:02:28]} 8. b4 {[%clk 0:02:54]}  Qe8 {[%clk 0:02:20]} 9. b5 {[%clk 0:02:47]}  h6 {[%clk 0:02:19]} 10. a4 {[%clk 0:02:44]}  a5 {[%clk 0:02:13]} 11. Ba3 {[%clk 0:02:42]}  Be6 {[%clk 0:02:02]} 12. c5 {[%clk 0:02:07]}  dxc5 {[%clk 0:01:41]} 13. Bxc5 {[%clk 0:02:04]}  Nbd7 {[%clk 0:01:40]} 14. Ba3 {[%clk 0:02:01]}  Nd5 {[%clk 0:01:36]} 15. Nxd5 {[%clk 0:01:55]}  Bxd5 {[%clk 0:01:34]} 16. bxc6 {[%clk 0:01:55]}  bxc6 {[%clk 0:01:32]} 17. Rb1 {[%clk 0:01:51]}  Rb8 {[%clk 0:01:27]} 18. Qd2 {[%clk 0:01:48]}  Nb6 {[%clk 0:01:21]} 19. Qxa5 {[%clk 0:01:42]}  Nc4 {[%clk 0:01:18]} 20. Qc5 {[%clk 0:01:42]}  Ra8 {[%clk 0:00:58]} 21. Rb7 {[%clk 0:01:41]}  Nxa3 {[%clk 0:00:49]} 22. Qxa3 {[%clk 0:01:41]}  c5 {[%clk 0:00:39]} 23. Rc7 {[%clk 0:01:36]}  cxd4 {[%clk 0:00:31]} 24. Rxe7 {[%clk 0:01:33]}  Qxa4 {[%clk 0:00:31]} 25. Qd6 {[%clk 0:01:33]}  Qc6 {[%clk 0:00:28]} 26. Qxc6 {[%clk 0:01:20]}  Bxc6 {[%clk 0:00:27]} 27. Re6 {[%clk 0:01:21]}  Bb5 {[%clk 0:00:24]} 28. Rb1 {[%clk 0:01:01]}  Bxe2 {[%clk 0:00:23]} 29. Rxe2 {[%clk 0:01:00]} 1-0


[Site "https://www.chess.com"]

[Event "Titled Tuesday Blitz January 10 Early 2023"]
[White "Dominguez Perez, Leinier"]
[Black "Putnam, Liam"]
[WhiteFideId "3503240"]
[BlackFideId "30938279"]
[WhiteElo "2739"]
[BlackElo "2285"]
[Result "1-0"]
[Round "09"]
[TimeControl "180+2"]
[Date "2023.01.10"]
[WhiteClock "0:00:06"]
[BlackClock "0:00:07"]

1. e4 {[%clk 0:02:58]}  c5 {[%clk 0:02:59]} 2. Nf3 {[%clk 0:02:58]}  d6 {[%clk 0:02:58]} 3. d4 {[%clk 0:02:59]}  cxd4 {[%clk 0:02:59]} 4. Nxd4 {[%clk 0:02:59]}  Nf6 {[%clk 0:02:59]} 5. Nc3 {[%clk 0:03:00]}  Nc6 {[%clk 0:02:59]} 6. Bg5 {[%clk 0:03:00]}  e6 {[%clk 0:02:59]} 7. Qd2 {[%clk 0:03:00]}  a6 {[%clk 0:02:59]} 8. O-O-O {[%clk 0:03:00]}  Bd7 {[%clk 0:03:00]} 9. f3 {[%clk 0:02:59]}  Nxd4 {[%clk 0:03:00]} 10. Qxd4 {[%clk 0:02:59]}  Be7 {[%clk 0:03:01]} 11. Be3 {[%clk 0:02:59]}  Qc7 {[%clk 0:02:57]} 12. g4 {[%clk 0:02:58]}  b5 {[%clk 0:02:55]} 13. g5 {[%clk 0:02:58]}  Nh5 {[%clk 0:02:53]} 14. Kb1 {[%clk 0:02:58]}  O-O {[%clk 0:02:51]} 15. Qd2 {[%clk 0:02:53]}  b4 {[%clk 0:02:42]} 16. Ne2 {[%clk 0:02:53]}  a5 {[%clk 0:02:42]} 17. Ng3 {[%clk 0:02:53]}  g6 {[%clk 0:01:47]} 18. Nxh5 {[%clk 0:02:52]}  gxh5 {[%clk 0:01:48]} 19. Bd3 {[%clk 0:02:21]}  a4 {[%clk 0:01:42]} 20. Qe2 {[%clk 0:02:14]}  a3 {[%clk 0:01:36]} 21. b3 {[%clk 0:02:14]}  Qc3 {[%clk 0:01:09]} 22. Bc1 {[%clk 0:02:13]}  e5 {[%clk 0:01:09]} 23. Rhg1 {[%clk 0:02:12]}  Rfc8 {[%clk 0:01:02]} 24. Rg2 {[%clk 0:01:20]}  Rc7 {[%clk 0:00:54]} 25. h4 {[%clk 0:01:09]}  Rac8 {[%clk 0:00:52]} 26. Ba6 {[%clk 0:01:01]}  Ra8 {[%clk 0:00:47]} 27. Rd3 {[%clk 0:00:59]}  Qc5 {[%clk 0:00:30]} 28. Bc4 {[%clk 0:00:58]}  Rac8 {[%clk 0:00:21]} 29. g6 {[%clk 0:00:57]}  Be6 {[%clk 0:00:13]} 30. gxf7+ {[%clk 0:00:41]}  Kxf7 {[%clk 0:00:13]} 31. f4 {[%clk 0:00:35]}  Bxc4 {[%clk 0:00:07]} 32. Qxh5+ {[%clk 0:00:35]}  Kf8 {[%clk 0:00:06]} 33. fxe5 {[%clk 0:00:30]}  Bf7 {[%clk 0:00:05]} 34. Rf3 {[%clk 0:00:27]}  Bd8 {[%clk 0:00:01]} 35. Qxh7 {[%clk 0:00:24]}  Ke8 {[%clk 0:00:01]} 36. Rxf7 {[%clk 0:00:07]}  Rxf7 {[%clk 0:00:01]} 37. Rg8+ {[%clk 0:00:03]}  Kd7 {[%clk 0:00:01]} 38. Qxf7+ {[%clk 0:00:03]}  Kc6 {[%clk 0:00:02]} 39. Qd5+ {[%clk 0:00:03]}  Qxd5 {[%clk 0:00:01]} 40. exd5+ {[%clk 0:00:04]}  Kxd5 {[%clk 0:00:02]} 41. Bg5 {[%clk 0:00:04]}  Rc3 {[%clk 0:00:01]} 42. Rxd8 {[%clk 0:00:04]}  Rf3 {[%clk 0:00:02]} 43. exd6 {[%clk 0:00:04]}  Ke5 {[%clk 0:00:02]} 44. Bc1 {[%clk 0:00:04]}  Rf1 {[%clk 0:00:03]} 45. d7 {[%clk 0:00:04]}  Rh1 {[%clk 0:00:04]} 46. Re8+ {[%clk 0:00:05]}  Kd6 {[%clk 0:00:04]} 47. d8=Q+ {[%clk 0:00:05]}  Kc5 {[%clk 0:00:05]} 48. Re5+ {[%clk 0:00:06]}  Kc6 {[%clk 0:00:06]} 49. Qd5+ {[%clk 0:00:05]}  Kb6 {[%clk 0:00:06]} 50. Re6+ {[%clk 0:00:05]}  Kc7 {[%clk 0:00:07]} 51. Qc6+ {[%clk 0:00:05]}  Kd8 {[%clk 0:00:07]} 52. Re8# {[%clk 0:00:06]} 1-0


[Site "https://www.chess.com"]

[Event "Titled Tuesday Blitz January 10 Early 2023"]
[White "Preotu, Razvan"]
[Black "Kamsky, Gata"]
[WhiteFideId "2613280"]
[BlackFideId "2000024"]
[WhiteElo "2475"]
[BlackElo "2665"]
[Result "1-0"]
[Round "09"]
[TimeControl "180+2"]
[Date "2023.01.10"]
[WhiteClock "0:00:05"]
[BlackClock "0:00:03"]

1. e4 {[%clk 0:03:00]}  e5 {[%clk 0:02:54]} 2. Nf3 {[%clk 0:03:01]}  Nc6 {[%clk 0:02:53]} 3. Bc4 {[%clk 0:03:00]}  Bc5 {[%clk 0:02:51]} 4. c3 {[%clk 0:02:59]}  Nf6 {[%clk 0:02:50]} 5. d3 {[%clk 0:03:00]}  d6 {[%clk 0:02:48]} 6. O-O {[%clk 0:03:00]}  a5 {[%clk 0:02:43]} 7. Re1 {[%clk 0:03:00]}  O-O {[%clk 0:02:32]} 8. h3 {[%clk 0:02:59]}  h6 {[%clk 0:02:23]} 9. Bb5 {[%clk 0:02:59]}  Bd7 {[%clk 0:02:21]} 10. Nbd2 {[%clk 0:02:47]}  Re8 {[%clk 0:02:16]} 11. Nf1 {[%clk 0:02:46]}  Bb6 {[%clk 0:01:32]} 12. Ng3 {[%clk 0:02:46]}  Ne7 {[%clk 0:01:32]} 13. Bxd7 {[%clk 0:02:37]}  Qxd7 {[%clk 0:01:32]} 14. d4 {[%clk 0:02:38]}  Ng6 {[%clk 0:01:30]} 15. a4 {[%clk 0:02:32]}  Rad8 {[%clk 0:01:25]} 16. Be3 {[%clk 0:02:06]}  exd4 {[%clk 0:01:21]} 17. Bxd4 {[%clk 0:02:07]}  Bxd4 {[%clk 0:01:21]} 18. cxd4 {[%clk 0:02:02]}  Qc6 {[%clk 0:01:09]} 19. Qb3 {[%clk 0:01:40]}  b6 {[%clk 0:00:39]} 20. Rac1 {[%clk 0:01:38]}  Qb7 {[%clk 0:00:38]} 21. Qc2 {[%clk 0:01:20]}  c5 {[%clk 0:00:37]} 22. d5 {[%clk 0:01:20]}  b5 {[%clk 0:00:36]} 23. Nd2 {[%clk 0:01:16]}  bxa4 {[%clk 0:00:33]} 24. Nc4 {[%clk 0:01:09]}  Ne5 {[%clk 0:00:33]} 25. Nxe5 {[%clk 0:01:03]}  Rxe5 {[%clk 0:00:32]} 26. f3 {[%clk 0:00:56]}  Qb4 {[%clk 0:00:26]} 27. Ra1 {[%clk 0:00:55]}  Rb8 {[%clk 0:00:25]} 28. Re2 {[%clk 0:00:54]}  Qd4+ {[%clk 0:00:22]} 29. Kh2 {[%clk 0:00:54]}  Rb4 {[%clk 0:00:22]} 30. Nf5 {[%clk 0:00:52]}  Rxf5 {[%clk 0:00:20]} 31. exf5 {[%clk 0:00:53]}  h5 {[%clk 0:00:15]} 32. Qd2 {[%clk 0:00:43]}  Nxd5 {[%clk 0:00:14]} 33. Re8+ {[%clk 0:00:35]}  Kh7 {[%clk 0:00:13]} 34. Qxd4 {[%clk 0:00:32]}  Rxd4 {[%clk 0:00:13]} 35. Rf8 {[%clk 0:00:17]}  Rd2 {[%clk 0:00:09]} 36. Rxf7 {[%clk 0:00:16]}  Kg8 {[%clk 0:00:09]} 37. Rd7 {[%clk 0:00:14]}  Ne3 {[%clk 0:00:09]} 38. Re1 {[%clk 0:00:11]}  Nxf5 {[%clk 0:00:07]} 39. Re8+ {[%clk 0:00:10]}  Kh7 {[%clk 0:00:07]} 40. Ra8 {[%clk 0:00:07]}  Ne3 {[%clk 0:00:05]} 41. Kg3 {[%clk 0:00:06]}  Rxg2+ {[%clk 0:00:04]} 42. Kf4 {[%clk 0:00:07]}  Nd5+ {[%clk 0:00:04]} 43. Kf5 {[%clk 0:00:07]}  Ne3+ {[%clk 0:00:03]} 44. Ke6 {[%clk 0:00:07]}  Nc4 {[%clk 0:00:03]} 45. Rb7 {[%clk 0:00:05]} 1-0


[Site "https://www.chess.com"]